{"text_format":"3","workbook":"xlsx","n_sheets":4,"sheets":["Nutzungsbedingungen","Vorspannung","Sprachen","Quellen"],"not_rendered":{"charts":4,"images":7,"defined_names":8},"read":"whole","date_system":"1900"}

{"sheet":"Nutzungsbedingungen","index":0,"n_rows":35,"n_cols":13,"rows_kept":35,"merged":[[1,1,1,9],[2,1,3,8],[4,1,17,11],[18,1,20,6],[21,1,35,6],[30,8,30,10],[34,8,35,11]]}
[]
[null,{"$f":"HLOOKUP(Sprachen!$G$1,Sprachen!$F$2:$O$50,40,0)","v":"NUTZUNGSBEDINGUNGEN"}]
[null,{"$f":"HLOOKUP(Sprachen!$G$1,Sprachen!$F$2:$O$50,36,0)","v":"Berechnungstool RAUPEX Industrierohrsystem: Montage mit Vorspannung oder Selbstspannung"}]
[]
[null,{"$f":"HLOOKUP(Sprachen!$G$1,Sprachen!$F$2:$O$50,37,0)","v":"Mit diesem RAUPEX Berechnungstool können verschiedene Kräfte bei der Montage mit Vorspannung ermittelt werden. Das RAUPEX-System muss hierbei aus den Komponenten RAUPEX oder RAUTHERM FW Rohren der Rohrreihen SDR 11 oder SDR 7,4 und den Verbindungstechniken SCHIEBEHÜLSE, SMARTFUSE oder FUSAPEX bestehen. In den vorgespannten Rohrleitungsteilen dürfen hierbei keine Flanschverbindungen, keine bauseitigen Verbindungstechniken oder zugempfindliche Bauteile enthalten sein. Nach Eingabe aller Daten in den grau hinterlegten Zellen werden erwartende Kräfte im Betrieb unter Druck, außer Betrieb drucklos sowie zur Vorspannung ermittelt. Die im Berechnungstool ermittelten Kräfte sind hierbei nicht mit Sicherheitsfaktoren beaufschlagt. Die größte ermittelte Kraft ist relevant für die Auslegung der Festpunkte. Auch wird eine Zuglänge zur Vorspannung ermittelt, welche vorzugsweise in der Mitte der Rohrleitung zu platzieren ist. Die Kraftübertragung am Festpunkt oder beim Vorspannen der Rohrleitung muss immer über die stirnseitige, über das Rohr herausstehende, Kreisringfläche der Verbindungstechnik erfolgen. Ergänzende Informationen zur Montage mit Vorspannung sind dem Installationsvideo zu entnehmen, welche durch einen Klick auf nebenstehendes Bild gestartet werden kann. \n\nBauseitige Komponenten und Gebäudeanforderungen außerhalb des RAUPEX-Systems sind in der Betrachtung nicht einbezogen und müssen durch den Errichter und Betreiber gesondert definiert und umgesetzt werden. Das Berechnungstool bietet unterschiedliche Eingabemöglichkeiten an, welche durch den Benutzer auszuwählen, zu kombinieren und auf den jeweiligen Anwendungsfall zu übertragen sind. Die bei der Berechnung hinterlegten Formeln, Konstanten, Variablen und Näherungswerte können nicht immer auf die jeweiligen Betriebsparameter angepasst werden. Der sich hierbei ergebende Fehler fließt direkt in die Ergebnisse ein. Auch können sich durch Fehler in der Berechnung weitere Abweichungen ergeben."}]
{"$rows_empty":13}
[null,{"$f":"HLOOKUP(Sprachen!$G$1,Sprachen!$F$2:$O$50,38,0)","v":"Das Ergebnis ist damit ausschließlich eine ungefähre Näherung, für deren praktische Genauigkeit und Anwendbarkeit wir im Einzelfall keine Gewähr übernehmen können."},{"$nulls":6},{"$f":"HLOOKUP(Sprachen!$G$1,Sprachen!$F$2:$O$50,42,0)","v":"Installationsvideo"}]
[]
[]
[null,{"$f":"HLOOKUP(Sprachen!$G$1,Sprachen!$F$2:$O$50,39,0)","v":"Wir sind stehts bemüht dieses Berechnungstool zu verbessern und bitten in diesem Zusammenhang um Ihre Rückmeldung aus der praktischen Anwendung sowie der Übereinstimmung mit Anlagen im Betrieb. Aktualisierte Versionen werden über unsere Homepage als Download zur Verfügung gestellt, somit prüfen Sie bitte bei Nutzung die Aktualität des Berechnungstool.\n\nAlle Daten innerhalb dieser Webseite/Software sind urheberrechtlich geschützt und dürfen nicht ohne Zustimmung der Rechteinhaber verwendet werden. Die durch das Urheberrecht begründeten Rechte, insbesondere die der Übersetzung, des Nachdruckes, der Entnahme von Abbildungen, der Funksendungen, der Wiedergabe auf fotomechanischem oder ähnlichem Wege und der Speicherung in Datenverarbeitungsanlagen, bleibt vorbehalten.\n\nDurch die Nutzung dieses Berechnungstools gelten die Liefer- und Zahlungsbedingungen der REHAU Industries SE & Co. KG als akzeptiert. Diese stehen auf unserer Homepage zur Verfügung oder unter folgendem Link: \nwww.rehau.com/de-de/liefer-und-zahlungsbedingungen\n\nWenn Sie Fragen haben, kontaktieren Sie uns bitte: \nREHAU Industries SE & Co. KG, Ytterbium 4, D-91058 Erlangen\nTel. +49-9131-92-0, Team Industrierohrsysteme"}]
{"$rows_empty":7}
[{"$nulls":12},"V-09.25"]
[{"$nulls":8},{"$f":"HLOOKUP(Sprachen!$G$1,Sprachen!$F$2:$O$50,43,0)","v":"Sprache wählen"}]
[]
[]
[]
[{"$nulls":8},{"$f":"HLOOKUP(Sprachen!$G$1,Sprachen!$F$2:$O$50,35,0)","v":"Nutzungsbedingungen\nakzeptieren"}]

{"sheet":"Vorspannung","index":1,"n_rows":72,"n_cols":20,"rows_kept":72,"merged":[[4,3,4,5],[4,10,7,13],[5,3,6,5],[8,12,8,13],[28,9,28,10],[29,5,29,7],[53,15,57,15],[58,15,62,15],[67,6,67,8]]}
[]
[null,{"$f":"HLOOKUP(Sprachen!$G$1,Sprachen!$F$2:$O$50,2,0)","v":"RAUPEX Industrierohrsystem"}]
[null,{"$f":"HLOOKUP(Sprachen!$G$1,Sprachen!$F$2:$O$50,3,0)","v":"Montage mit Vorspannung"}]
[null,null,{"$f":"IF(Sprachen!D16<0,Sprachen!C16,\"\")","v":""}]
[null,{"$f":"HLOOKUP(Sprachen!$G$1,Sprachen!$F$2:$O$50,4,0)","v":"RAUPEX Rohr"},null,"63 x 5,8     SDR  11",{"$nulls":6},{"$f":"HLOOKUP(Sprachen!$G$1,Sprachen!$F$2:$O$50,41,0)","v":"Bitte klicken Sie hier und beachten die Hinweise in den Nutzungsbedingungen."}]
[null,{"$f":"HLOOKUP(Sprachen!$G$1,Sprachen!$F$2:$O$50,34,0)","v":"Kommentar"},{"$nulls":4},"  [mm]"]
[]
[]
[null,{"$f":"HLOOKUP(Sprachen!$G$1,Sprachen!$F$2:$O$50,5,0)","v":"Rohraußendurchmesser"},"da",null,{"$f":"VLOOKUP(D5,Sprachen!P3:S19,2,FALSE)","v":63},"[mm]",{"$nulls":6},{"$f":"TODAY()","v":"2025-11-24"}]
[null,{"$f":"HLOOKUP(Sprachen!$G$1,Sprachen!$F$2:$O$50,6,0)","v":"Rohrwandstärke"},"s",null,{"$f":"VLOOKUP(D5,Sprachen!P3:S19,3,FALSE)","v":5.8},"[mm]",null,{"$f":"HLOOKUP(Sprachen!$G$1,Sprachen!$F$2:$O$50,21,0)","v":"Ergebnisse"}]
[null,{"$f":"HLOOKUP(Sprachen!$G$1,Sprachen!$F$2:$O$50,7,0)","v":"Ausdehnungskoeffizient"},"a",null,0.15,"[mm/mK]"]
[]
[null,{"$f":"HLOOKUP(Sprachen!$G$1,Sprachen!$F$2:$O$50,8,0)","v":"Betriebsdruck"},"pB",null,3,"[bar]",null,{"$f":"HLOOKUP(Sprachen!$G$1,Sprachen!$F$2:$O$50,22,0)","v":"Längenermittlung"}]
[{"$nulls":7},{"$f":"HLOOKUP(Sprachen!$G$1,Sprachen!$F$2:$O$50,23,0)","v":"Gesamtzuglänge"},null,null,"ΔL",{"$f":"P59","v":{"v":295.93615358686947,"d":"296"}},"[mm]"]
[null,{"$f":"HLOOKUP(Sprachen!$G$1,Sprachen!$F$2:$O$50,9,0)","v":"Temperatur bei Montage"},"Tz",null,20,"[°C]"]
[]
[null,{"$f":"HLOOKUP(Sprachen!$G$1,Sprachen!$F$2:$O$50,10,0)","v":"Temperatur im Betrieb maximal"},"TB max",null,35,"[°C]",null,{"$f":"HLOOKUP(Sprachen!$G$1,Sprachen!$F$2:$O$50,24,0)","v":"Montagetemperatur"},null,null,"Tz"]
[null,{"$f":"HLOOKUP(Sprachen!$G$1,Sprachen!$F$2:$O$50,11,0)","v":"Temperatur im Betrieb minimal"},"TB min",null,30,"[°C]",null,{"$f":"HLOOKUP(Sprachen!$G$1,Sprachen!$F$2:$O$50,25,0)","v":"Zugkraft"},null,null,"Fz",{"$f":"T56","v":{"v":1876.015292360326,"d":"1,876"}},"[N]"]
[]
[null,{"$f":"HLOOKUP(Sprachen!$G$1,Sprachen!$F$2:$O$50,12,0)","v":"Temperatur außer Betrieb, drucklos maximal"},"TaB max",null,10,"[°C]"]
[null,{"$f":"HLOOKUP(Sprachen!$G$1,Sprachen!$F$2:$O$50,13,0)","v":"Temperatur außer Betrieb, drucklos minimal"},"TaB min",null,5,"[°C]",null,{"$f":"HLOOKUP(Sprachen!$G$1,Sprachen!$F$2:$O$50,26,0)","v":"Im Betrieb unter Druck"},{"$nulls":3},"TBmax","I","TBmin"]
[{"$nulls":7},{"$f":"HLOOKUP(Sprachen!$G$1,Sprachen!$F$2:$O$50,27,0)","v":"Kraft im Festpunkt"},null,null,"FB",{"$f":"T59","v":0},"[N]",{"$f":"T60","v":{"v":414.63991656737534,"d":"415"}}]
[null,{"$f":"HLOOKUP(Sprachen!$G$1,Sprachen!$F$2:$O$50,14,0)","v":"Abstand der Festpunktschellen außen"},"La",null,100,"[m]"]
[null,{"$f":"HLOOKUP(Sprachen!$G$1,Sprachen!$F$2:$O$50,15,0)","v":"Abstand Fitting zu Fixpunkt links"},"Lfixl",null,10,"[mm]"]
[null,{"$f":"HLOOKUP(Sprachen!$G$1,Sprachen!$F$2:$O$50,16,0)","v":"Abstand Fitting zu Fixpunkt rechts"},"Lfixr",null,15,"[mm]",null,{"$f":"HLOOKUP(Sprachen!$G$1,Sprachen!$F$2:$O$50,28,0)","v":"Außer Betrieb drucklos"},{"$nulls":3},"TaBmax","I","TaBmin"]
[{"$nulls":7},{"$f":"HLOOKUP(Sprachen!$G$1,Sprachen!$F$2:$O$50,29,0)","v":"Kraft im Festpunkt"},null,null,"FaB",{"$f":"T62","v":{"v":3870.2973654976377,"d":"3,870"}},"[N]",{"$f":"T63","v":{"v":5122.847467142709,"d":"5,123"}}]
[]
[]
[null,{"$f":"E24","v":{"v":10,"d":"10 mm"}},null,{"$f":"E23","v":{"v":100,"d":"100.0 m"}},{"$nulls":5},{"$f":"E25","v":{"v":15,"d":"15 mm"}}]
[null,"Lfixl",null,"La",{"$nulls":5},"Lfixr",{"$nulls":3},{"$f":"IF(P54=\"Vorspannung\",HLOOKUP(Sprachen!$G$1,Sprachen!$F$2:$O$50,30,0),HLOOKUP(Sprachen!$G$1,Sprachen!$F$2:$O$50,31,0))","v":"Vorspannung"}]
[]
[{"$nulls":13},{"$f":"IF(P54=\"Vorspannung\",HLOOKUP(Sprachen!$G$1,Sprachen!$F$2:$O$50,20,0),HLOOKUP(Sprachen!$G$1,Sprachen!$F$2:$O$50,33,0))","v":"Rohr ziehen"}]
[]
[{"$nulls":3},"ΔL   "]
[{"$nulls":3},{"$f":"L14","v":{"v":295.93615358686947,"d":"296 mm"}}]
{"$rows_empty":18}
[{"$nulls":7},"d Tmontage","dLDruck","dLTemp","dLÜberstand","dLgesamt","E-Modul","Spannung","Kraft",{"$f":"IF((P59>0),\"Vorspannung\",\"Selbstspannung\")","v":"Vorspannung"},null,"dLSpannung","Spannung","Kraft"]
[]
[{"$nulls":7},0,{"$f":"((1-2*Quellen!P6)*E23*1000*X35/10)/(M56*((E9^2/(E9-E10-E10)^2)-1))","v":0},0,null,{"$f":"SUM(I56:K56)","v":0},{"$f":"VLOOKUP(E15,Quellen!A3:B138,2,TRUE)","v":{"v":664.3478260869571,"d":"664"}},{"$f":"IFERROR(M56*L56/1000/E23,\"-\")","v":{"v":0,"d":"0.0"}},{"$f":"IFERROR(N56*Quellen!P3*Quellen!P7,\"-\")","v":0},null,null,{"$f":"IF(MAX(L59:L63)>0,MAX(L59:L63)+I56,0)","v":{"v":270.93615358686947,"d":"271"}},{"$f":"IFERROR(R56*M56/1000/E23,\"-\")","v":{"v":1.7999584464379865,"d":"1.8"}},{"$f":"IFERROR(S56*Quellen!P3*Quellen!P7,\"-\")","v":{"v":1876.015292360326,"d":"1,876"}}]
[]
[]
[{"$nulls":6},"TB max",{"$f":"E17-E15","v":15},{"$f":"((1-2*Quellen!P6)*E23*1000*E13/10)/(M59*((E9^2/(E9-E10-E10)^2)-1))-I56","v":{"v":45.936153586869445,"d":"46"}},{"$f":"H59*E11*E23","v":225},null,{"$f":"I59+J59+K59","v":{"v":270.93615358686947,"d":"271"}},{"$f":"VLOOKUP(E17,Quellen!A3:B138,2,TRUE)","v":{"v":390.0588235294117,"d":"390.1"}},{"$f":"IFERROR(M59*L59/1000/E23,\"-\")","v":{"v":1.056810373196783,"d":"1.1"}},{"$f":"IFERROR(N59*Quellen!P3*Quellen!P7,\"-\")","v":{"v":1101.4656617021485,"d":"1,101"}},{"$f":"IF(MAX(L59,L60,L62,L63)+E24+E25>0,MAX(L59,L60,L62,L63)+E24+E25,0)","v":{"v":295.93615358686947,"d":"296"}},null,{"$f":"IF(P59>0,R56-L59,L59+E24+E25)","v":0},{"$f":"IFERROR(R59*M59/1000/E23,\"-\")","v":{"v":0,"d":"0.0"}},{"$f":"ABS(IFERROR(S59*Quellen!P3*Quellen!P7,\"-\"))","v":0}]
[{"$nulls":6},"TB min",{"$f":"E18-E15","v":10},{"$f":"((1-2*Quellen!P6)*E23*1000*E13/10)/(M60*((E9^2/(E9-E10-E10)^2)-1))-I56","v":{"v":37.554263892803746,"d":"38"}},{"$f":"H60*E11*E23","v":150},null,{"$f":"I60+J60+K60","v":{"v":187.55426389280376,"d":"188"}},{"$f":"VLOOKUP(E18,Quellen!A3:B138,2,TRUE)","v":{"v":477.1176470588236,"d":"477"}},{"$f":"IFERROR(M60*L60/1000/E23,\"-\")","v":{"v":0.894854490843842,"d":"0.9"}},{"$f":"IFERROR(N60*Quellen!P3*Quellen!P7,\"-\")","v":{"v":932.6663693723214,"d":"933"}},null,null,{"$f":"IF(P59>0,R56-L60,L60+E24+E25)","v":{"v":83.3818896940657,"d":"83"}},{"$f":"IFERROR(R60*M60/1000/E23,\"-\")","v":{"v":0.39782971018151003,"d":"0.4"}},{"$f":"ABS(IFERROR(S60*Quellen!P3*Quellen!P7,\"-\"))","v":{"v":414.63991656737534,"d":"415"}}]
[]
[{"$nulls":6},"TaB max",{"$f":"E20-E15","v":-10},{"$f":"0-I56","v":0},{"$f":"H62*E11*E23","v":-150},null,{"$f":"I62+J62+K62","v":-150},{"$f":"VLOOKUP(E20,Quellen!A3:B138,2,TRUE)","v":{"v":882.1739130434784,"d":"882"}},{"$f":"IFERROR(M62*L62/1000/E23,\"-\")","v":{"v":-1.3232608695652175,"d":"-1.3"}},{"$f":"IFERROR(N62*Quellen!P3*Quellen!P7,\"-\")","v":{"v":-1379.1749648437776,"d":"-1,379"}},null,null,{"$f":"IF(P59>0,R56-L62,L62+E24+E25)","v":{"v":420.93615358686947,"d":"421"}},{"$f":"IFERROR(R62*M62/1000/E23,\"-\")","v":{"v":3.713388937511992,"d":"3.7"}},{"$f":"ABS(IFERROR(S62*Quellen!P3*Quellen!P7,\"-\"))","v":{"v":3870.2973654976377,"d":"3,870"}}]
[{"$nulls":6},"TaB min",{"$f":"E21-E15","v":-15},{"$f":"0-I56","v":0},{"$f":"H63*E23*E11","v":-225},null,{"$f":"I63+J63+K63","v":-225},{"$f":"VLOOKUP(E21,Quellen!A3:B138,2,TRUE)","v":{"v":991.086956521739,"d":"991"}},{"$f":"IFERROR(M63*L63/1000/E23,\"-\")","v":{"v":-2.2299456521739125,"d":"-2.2"}},{"$f":"IFERROR(N63*Quellen!P3*Quellen!P7,\"-\")","v":{"v":-2324.171512342082,"d":"-2,324"}},null,null,{"$f":"IF(P59>0,R56-L63,L63+E24+E25)","v":{"v":495.93615358686947,"d":"496"}},{"$f":"IFERROR(R63*M63/1000/E23,\"-\")","v":{"v":4.915158530875082,"d":"4.9"}},{"$f":"ABS(IFERROR(S63*Quellen!P3*Quellen!P7,\"-\"))","v":{"v":5122.847467142709,"d":"5,123"}}]
[{"$nulls":11},{"$f":"MAX(L59:L63)","v":{"v":270.93615358686947,"d":"271"}},{"$nulls":3},"BASIS",{"$nulls":3},"[Beträge]"]
[]
[]
[]
[{"$nulls":6},"RAUPEX Rohr",null,null,"Ringfläche\n[mm2]","Streckgrenze\n[N/mm2]","Kraft\n[N]"]
[{"$nulls":6},32,2.9,{"$f":"G69-H69-H69","v":26.200000000000003},{"$f":"((G69^2)*PI()/4)-((I69^2)*PI()/4)","v":{"v":265.11900403644256,"d":"265"}},17,{"$f":"J69*K69","v":{"v":4507.023068619524,"d":"4507"}}]
[{"$nulls":6},63,5.8,{"$f":"G70-H70-H70","v":51.400000000000006},{"$f":"((G70^2)*PI()/4)-((I70^2)*PI()/4)","v":{"v":1042.2547787549493,"d":"1042"}},17,{"$f":"J70*K70","v":{"v":17718.331238834136,"d":"17718"}}]
[{"$nulls":6},160,14.6,130.8,{"$f":"((G71^2)*PI()/4)-((I71^2)*PI()/4)","v":{"v":6669.098548746555,"d":"6669"}},17,{"v":113374.67532869143,"d":"113375"}]
[{"$nulls":6},{"$f":"E9","v":63},{"$f":"E10","v":5.8},{"$f":"G72-H72-H72","v":51.400000000000006},{"$f":"((G72^2)*PI()/4)-((I72^2)*PI()/4)","v":{"v":1042.2547787549493,"d":"1042"}},15,{"$f":"J72*K72","v":{"v":15633.82168132424,"d":"15634"}}]

{"sheet":"Sprachen","index":2,"n_rows":44,"n_cols":19,"rows_kept":44,"hidden":true}
[1,{"$f":"G2","v":"Deutsch"},1,null,null,"Sprache",{"$f":"VLOOKUP(C1,A1:B14,2,FALSE)","v":"Deutsch"}]
[2,{"$f":"H2","v":"English"},null,null,1,"Original","Deutsch","English","Italiano","Español","Polski","中文"]
[3,"Italiano",null,null,2,null,"RAUPEX Industrierohrsystem","RAUPEX Industrial Piping System",null,null,"System instalacji przemysłowych RAUPEX","RAUPEX工业管道系统",{"$nulls":3},{"$f":"Q3&\" x \"&R3&\"     \"&S3","v":"20 x 1,9     SDR  11"},20,1.9,"SDR  11"]
[4,"Español",null,null,3,null,"Montage mit Vorspannung","Prestressed installation",null,null,"Mongaż z naciągiem wstępnym","预应力安装",{"$nulls":3},"25 x 2,3     SDR  11",25,2.3,"SDR  11"]
[5,"Polski",null,null,4,null,"RAUPEX Rohr","RAUPEX pipe",null,null,"Rura RAUPEX","RAUPEX管道",{"$nulls":3},"32 x 2,9     SDR  11",32,2.9,"SDR  11"]
[6,"中文",null,null,5,null,"Rohraußendurchmesser","Outer pipe diameter",null,null,"Średnica zewnętrzna rury","管道外径",{"$nulls":3},"40 x 3,7     SDR  11",40,3.7,"SDR  11"]
[7,{"$nulls":3},6,null,"Rohrwandstärke","Pipe wall thickness",null,null,"Grubość ścianki rury","管道壁厚",{"$nulls":3},"50 x 4,6     SDR  11",50,4.6,"SDR  11"]
[8,{"$nulls":3},7,null,"Ausdehnungskoeffizient","Coefficient of expansion",null,null,"Współczynnik rozszerzalności","膨胀系数",{"$nulls":3},"63 x 5,8     SDR  11",63,5.8,"SDR  11"]
[9,{"$nulls":3},8,null,"Betriebsdruck","Operating pressure",null,null,"Ciśnienie robocze","工作压力",{"$nulls":3},"75 x 6,8     SDR  11",75,6.8,"SDR  11"]
[{"$nulls":4},9,null,"Temperatur bei Montage","Installation temperature",null,null,"Temperatura montażu","安装时温度",{"$nulls":3},"90 x 8,2     SDR  11",90,8.2,"SDR  11"]
[{"$nulls":4},10,null,"Temperatur im Betrieb maximal","Temperature max. during operation",null,null,"Temperatura robocza maks.","工作时最高温度",{"$nulls":3},"110 x 10     SDR  11",110,{"v":10,"d":"10.0"},"SDR  11"]
[null,{"$f":"HLOOKUP($G$1,$F$2:$O$50,2,0)","v":"RAUPEX Industrierohrsystem"},null,null,11,null,"Temperatur im Betrieb minimal","Temperature min. during operation",null,null,"Temperatura robocza min.","工作时最低温度",{"$nulls":3},"125 x 11,4     SDR  11",125,11.4,"SDR  11"]
[{"$nulls":4},12,null,"Temperatur außer Betrieb, drucklos maximal","Temperature max. offline, pressureless",null,null,"Temperatura offline, bez ciśnienia maks.","非工作、无压状态时最高温度",{"$nulls":3},"160 x 14,6     SDR  11",160,14.6,"SDR  11"]
[{"$nulls":4},13,null,"Temperatur außer Betrieb, drucklos minimal","Temperature min. offline, pressureless",null,null,"Temperatura offline, bez ciśnienia min.","非工作、无压状态时最低温度",{"$nulls":3},"20 x 2,8     SDR  7,4",20,2.8,"SDR  7,4"]
[{"$nulls":4},14,null,"Abstand der Festpunktschellen außen","Distance of the fixed point clamps outside",null,null,"Odległość punktów stałych","管道外部锚点间的距离",{"$nulls":3},"25 x 3,5     SDR  7,4",25,3.5,"SDR  7,4"]
[{"$nulls":4},15,null,"Abstand Fitting zu Fixpunkt links","Distance fitting to fixed point left",null,null,"Odległość punktu stałego po lewej stronie","左侧锚固管件到左锚点的间隙",{"$nulls":3},"32 x 4,4     SDR  7,4",32,4.4,"SDR  7,4"]
[{"$nulls":4},16,null,"Abstand Fitting zu Fixpunkt rechts","Distance fitting to fixed point right",null,null,"Odległość punktu stałego po prawej stronie","右侧锚固管件到右锚点的间隙",{"$nulls":3},"40 x 5,5     SDR  7,4",40,5.5,"SDR  7,4"]
[{"$nulls":4},17,null,"Optimierung möglich aber Problem Offline","…",{"$nulls":7},"50 x 6,9     SDR  7,4",50,6.9,"SDR  7,4"]
[{"$nulls":4},18,null,"letzte Verbindung","Last connection",null,null,"Ostatnie połączenie","最后一个连接",{"$nulls":3},"63 x 8,6     SDR  7,4",63,8.6,"SDR  7,4"]
[{"$nulls":4},19,null,"Zugpunkt","Pulling point",null,null,"Punkt ciągnięcia","拉拽点"]
[{"$nulls":4},20,null,"Rohr ziehen","Pull the pipe",null,null,"Ciągnij rurę","拉伸管道"]
[{"$nulls":4},21,null,"Ergebnisse","Results",null,null,"Wyniki","计算结果"]
[{"$nulls":4},22,null,"Längenermittlung","Length determination",null,null,"Określenie długości","距离计算"]
[{"$nulls":4},23,null,"Gesamtzuglänge","Total tensile length",null,null,"Całkowita dł. rozciągania","总拉伸距离"]
[{"$nulls":4},24,null,"Montagetemperatur","Installation temperature",null,null,"Temperatura montażu","安装温度时"]
[{"$nulls":4},25,null,"Zugkraft","Tensile force",null,null,"Siła rozciągająca","拉力"]
[{"$nulls":4},26,null,"Im Betrieb unter Druck","In operation under pressure",null,null,"Podczas pracy pod ciśnieniem","带压工作时"]
[{"$nulls":4},27,null,"Kraft im Festpunkt","Force at fixed point",null,null,"Siła w punkcie mocowania","锚点拉力"]
[{"$nulls":4},28,null,"Außer Betrieb drucklos","Out of operation pressureless",null,null,"Poza pracą bez ciśnienia","非工作、无压状态时"]
[{"$nulls":4},29,null,"Kraft im Festpunkt","Force at fixed point",null,null,"Siła w punkcie mocowania","锚点拉力"]
[{"$nulls":4},30,null,"Vorspannung","Pre-tensioning",null,null,"Wstępne naprężenie","预应力"]
[{"$nulls":4},31,null,"Selbstspannung","Self-tensioning",null,null,"Samonaprężanie","内应力"]
[{"$nulls":4},32,null,"Installationsvideo hier klicken","Installation video click here",null,null,"Film instalacyjny kliknij tutaj","点击查看安装视频"]
[{"$nulls":4},33,null,"Rohr nicht ziehen","Do not pull the pipe",null,null,"Nie ciągnij rury","不要拉伸管道"]
[{"$nulls":4},34,null,"Kommentar","Comment",null,null,"Komentarz","附加说明"]
[{"$nulls":4},35,null,"Nutzungsbedingungen\nakzeptieren","Accept terms of use",null,null,"Zaakceptuj warunki użytkowania","接受使用条款"]
[{"$nulls":4},36,null,"Berechnungstool RAUPEX Industrierohrsystem: Montage mit Vorspannung oder Selbstspannung","RAUPEX industrial pipe system calculation tool: Installation with pre-tensioning or self-tensioning",null,null,"Narzędzie do obliczania przemysłowego systemu rur RAUPEX: Montaż z wstępnym naprężeniem lub samonaprężaniem","RAUPEX工业管道系统计算工具：预应力或内应力安装"]
[{"$nulls":4},37,null,"Mit diesem RAUPEX Berechnungstool können verschiedene Kräfte bei der Montage mit Vorspannung ermittelt werden. Das RAUPEX-System muss hierbei aus den Komponenten RAUPEX oder RAUTHERM FW Rohren der Rohrreihen SDR 11 oder SDR 7,4 und den Verbindungstechniken SCHIEBEHÜLSE, SMARTFUSE oder FUSAPEX bestehen. In den vorgespannten Rohrleitungsteilen dürfen hierbei keine Flanschverbindungen, keine bauseitigen Verbindungstechniken oder zugempfindliche Bauteile enthalten sein. Nach Eingabe aller Daten in den grau hinterlegten Zellen werden erwartende Kräfte im Betrieb unter Druck, außer Betrieb drucklos sowie zur Vorspannung ermittelt. Die im Berechnungstool ermittelten Kräfte sind hierbei nicht mit Sicherheitsfaktoren beaufschlagt. Die größte ermittelte Kraft ist relevant für die Auslegung der Festpunkte. Auch wird eine Zuglänge zur Vorspannung ermittelt, welche vorzugsweise in der Mitte der Rohrleitung zu platzieren ist. Die Kraftübertragung am Festpunkt oder beim Vorspannen der Rohrleitung muss immer über die stirnseitige, über das Rohr herausstehende, Kreisringfläche der Verbindungstechnik erfolgen. Ergänzende Informationen zur Montage mit Vorspannung sind dem Installationsvideo zu entnehmen, welche durch einen Klick auf nebenstehendes Bild gestartet werden kann. \n\nBauseitige Komponenten und Gebäudeanforderungen außerhalb des RAUPEX-Systems sind in der Betrachtung nicht einbezogen und müssen durch den Errichter und Betreiber gesondert definiert und umgesetzt werden. Das Berechnungstool bietet unterschiedliche Eingabemöglichkeiten an, welche durch den Benutzer auszuwählen, zu kombinieren und auf den jeweiligen Anwendungsfall zu übertragen sind. Die bei der Berechnung hinterlegten Formeln, Konstanten, Variablen und Näherungswerte können nicht immer auf die jeweiligen Betriebsparameter angepasst werden. Der sich hierbei ergebende Fehler fließt direkt in die Ergebnisse ein. Auch können sich durch Fehler in der Berechnung weitere Abweichungen ergeben.","This RAUPEX calculation tool can be used to determine various forces during installation with pre-tensioning. The RAUPEX system must consist of RAUPEX or RAUTHERM FW pipes from the SDR 11 or SDR 7.4 pipe series and SCHIEBEHÜLSE, SMARTFUSE, or FUSAPEX connection technologies. The pre-tensioned pipe sections must not contain any flange connections, on-site connection techniques, or tension-sensitive components. After entering all data in the gray cells, the expected forces during operation under pressure, out of operation without pressure, and for pre-tensioning are determined. The forces determined in the calculation tool are not subject to safety factors. The largest force determined is relevant for the design of the fixed points. A tensile length for pre-tensioning is also determined, which should preferably be placed in the middle of the pipeline. The force transmission at the fixed point or when pre-tensioning the pipe must always be via the circular ring surface of the connection technology protruding from the front of the pipe. Additional information on installation with pre-tensioning can be found in the installation video, which can be started by clicking on the adjacent image. \n\nOn-site components and building requirements outside the RAUPEX system are not included in the analysis and must be defined and implemented separately by the installer and operator. The calculation tool offers various input options, which must be selected, combined, and applied to the respective application by the user. The formulas, constants, variables, and approximate values stored in the calculation cannot always be adapted to the respective operating parameters. Any errors resulting from this are directly incorporated into the results. Errors in the calculation may also result in further deviations.",null,null,"\nTo narzędzie obliczeniowe RAUPEX może być używane do określania różnych sił podczas montażu z naprężeniem wstępnym. System RAUPEX musi składać się z rur RAUPEX lub RAUTHERM FW z serii SDR 11 lub SDR 7.4 oraz technologii połączeń typu TULEJA ZACISKOWA, SMARTFUSE lub FUSAPEX. Wstępnie naprężone odcinki rur nie mogą zawierać żadnych połączeń kołnierzowych, technik łączenia na miejscu ani elementów wrażliwych na naprężenia. Po wprowadzeniu wszystkich danych w szarych komórkach określane są przewidywane siły podczas pracy pod ciśnieniem, poza pracą bez ciśnienia oraz podczas wstępnego naprężania. Siły określone w narzędziu do obliczania nie podlegają współczynnikom bezpieczeństwa. Największa określona siła ma znaczenie dla projektowania punktów stałych. Określana jest również długość rozciągania dla wstępnego naprężenia, która powinna być umieszczona najlepiej w środkowej części rurociągu. Przenoszenie siły w punkcie stałym lub podczas wstępnego naprężania rury musi zawsze odbywać się poprzez okrągłą powierzchnię pierścieniową technologii połączeń wystającą z przodu rury. Dodatkowe informacje na temat montażu z wstępnym naprężeniem można znaleźć w filmie instalacyjnym, który można uruchomić, klikając na sąsiedni obrazek.\n\nElementy na miejscu i wymagania budowlane poza systemem RAUPEX nie są uwzględnione w analizie i muszą być zdefiniowane i wdrożone oddzielnie przez instalatora i operatora. Narzędzie obliczeniowe oferuje różne opcje wprowadzania danych, które muszą być wybrane, połączone i zastosowane do danego zastosowania przez użytkownika. Formuły, stałe, zmienne i wartości przybliżone zapisane w obliczeniach nie zawsze mogą być dostosowane do odpowiednich parametrów roboczych. Wszelkie błędy wynikające z tego są bezpośrednio uwzględniane w wynikach. Błędy w obliczeniach mogą również powodować dalsze odchylenia.","此 RAUPEX计算工具可用于在预应力安装中计算多种力的大小。\n\nRAUPEX系统必须由SDR 11 / SDR 7.4系列的RAUPEX /  RAUTHERM FW管道以及收紧套环式连接、SMARTFUSE、FUSAPEX 连接技术相关产品组成。预应力管段不得包含任何法兰连接、结构侧连接技术或应力敏感部件。\n\n在灰色单元格内输入所有数据后，可以计算出带压工作时、非工作无压状态时、以及预拉伸时的预期应力。\n\n计算工具中得出的力未考虑安全系数，因此安全系数需设计安装人员另行考虑和附加。\n\n计算出的最大力与锚点的设计有关。此外，还计算了预拉伸时的拉伸距离，该拉伸距离最好位于管段的中心。在锚固管道以及对管道进行预拉伸时，力的传递必须始终通过连接管件的端部、从管道上凸出的圆环表面进行。更多有关预应力安装的信息，可参考安装视频，点击旁边的图片即可访问。 \n\nRAUPEX系统之外的部件和建筑本身的要求不在此工具的考虑范围内，这些要求必须由设计和安装人员另行确定和实施。\n\n本计算工具提供了多种不同的输入选项，用户必须根据实际情况进行选择、组合，令其符合实际应用案例。本计算工具中使用的公式、常数、变量和近似值并不总是能够完全适应实际情况。由此产生的错误会直接反映在结果中。计算中的错误也可能导致其他偏差。"]
[{"$nulls":4},38,null,"Das Ergebnis ist damit ausschließlich eine ungefähre Näherung, für deren praktische Genauigkeit und Anwendbarkeit wir im Einzelfall keine Gewähr übernehmen können.","The result is therefore only an approximate estimate, and we cannot guarantee its practical accuracy and applicability in individual cases.",null,null,"Wynik jest zatem jedynie przybliżonym oszacowaniem i nie możemy zagwarantować jego praktycznej dokładności i zastosowania w poszczególnych przypadkach.","因此，计算结果仅为近似值，我们无法保证其在特定情况下的实际准确性和适用性。"]
[{"$nulls":4},39,null,"Wir sind stehts bemüht dieses Berechnungstool zu verbessern und bitten in diesem Zusammenhang um Ihre Rückmeldung aus der praktischen Anwendung sowie der Übereinstimmung mit Anlagen im Betrieb. Aktualisierte Versionen werden über unsere Homepage als Download zur Verfügung gestellt, somit prüfen Sie bitte bei Nutzung die Aktualität des Berechnungstool.\n\nAlle Daten innerhalb dieser Webseite/Software sind urheberrechtlich geschützt und dürfen nicht ohne Zustimmung der Rechteinhaber verwendet werden. Die durch das Urheberrecht begründeten Rechte, insbesondere die der Übersetzung, des Nachdruckes, der Entnahme von Abbildungen, der Funksendungen, der Wiedergabe auf fotomechanischem oder ähnlichem Wege und der Speicherung in Datenverarbeitungsanlagen, bleibt vorbehalten.\n\nDurch die Nutzung dieses Berechnungstools gelten die Liefer- und Zahlungsbedingungen der REHAU Industries SE & Co. KG als akzeptiert. Diese stehen auf unserer Homepage zur Verfügung oder unter folgendem Link: \nwww.rehau.com/de-de/liefer-und-zahlungsbedingungen\n\nWenn Sie Fragen haben, kontaktieren Sie uns bitte: \nREHAU Industries SE & Co. KG, Ytterbium 4, D-91058 Erlangen\nTel. +49-9131-92-0, Team Industrierohrsysteme","We are constantly striving to improve this calculation tool and would therefore appreciate your feedback on its practical application and compatibility with equipment in operation. Updated versions are available for download on our website, so please check that you are using the latest version of the calculation tool.\n\nAll data within this website/software is protected by copyright and may not be used without the consent of the copyright holder. The rights established by copyright, in particular those of translation, reprinting, extraction of illustrations, radio broadcasts, reproduction by photomechanical or similar means, and storage in data processing systems, are reserved.\n\nBy using this calculation tool, you accept the terms and conditions of delivery and payment of REHAU Industries SE & Co. KG. These are available on our homepage or at the following link: \nwww.rehau.com/de-de/liefer-und-zahlungsbedingungen\n\nIf you have any questions, please contact us: \nREHAU Industries SE & Co. KG, Ytterbium 4, D-91058 Erlangen, Germany\nTel. +49-9131-92-0, Industrial Pipe Systems Team",null,null,"\nNieustannie dążymy do ulepszania tego narzędzia obliczeniowego i dlatego będziemy wdzięczni za opinie na temat jego praktycznego zastosowania i kompatybilności z eksploatowanym sprzętem. Zaktualizowane wersje są dostępne do pobrania na naszej stronie internetowej, dlatego prosimy o sprawdzenie, czy korzystasz z najnowszej wersji narzędzia obliczeniowego.\n\nWszystkie dane zawarte na tej stronie internetowej/w tym oprogramowaniu są chronione prawem autorskim i nie mogą być wykorzystywane bez zgody właściciela praw autorskich. Zastrzeżone są prawa wynikające z prawa autorskiego, w szczególności prawa do tłumaczenia, przedruku, wykorzystania ilustracji, emisji radiowej, reprodukcji za pomocą środków fotomechanicznych lub podobnych oraz przechowywania w systemach przetwarzania danych.\n\nKorzystając z tego narzędzia obliczeniowego, akceptujesz warunki dostawy i płatności REHAU Industries SE & Co. KG. Są one dostępne na naszej stronie internetowej lub pod następującym linkiem:\nhttps://www.rehau.com/pl-pl/warunki-dostaw-i-platnosci \n\nW razie pytań prosimy o kontakt: REHAU Sp. z o.o. Baranowo ul. Poznańska 1A, 62-081 Przeźmierowo k. Poznania\n\n\n\n","我们一直在努力改进此计算工具，期待并感谢您反馈它在实际应用、设备运行的兼容性信息。\n\n请确保始终使用此计算工具的最新版本，您可以通过我们的网站下载此计算工具的最新版本。\n\n本网站/软件中的所有数据均受版权保护，未经版权所有者同意不得使用。保留所有基于版权的权利，特别是翻译、复印、提取图像、广播、通过拍照或类似意图进行复制、在数据处理系统中存储数据。\n\n使用此计算工具即视为接受REHAU Industries SE & Co. KG的交付和付款条件。这些条件可在我们的主页或以下链接找到：www.rehau.com/de-de/liefer-und-zahlungsbedingungen\n\n如果您有任何疑问，请联系我们：\nREHAU Industries SE & Co. KG，Ytterbium 4，D-91058 Erlangen\n电话 +49-9131-92-0，工业管道系统团队"]
[{"$nulls":4},40,null,"NUTZUNGSBEDINGUNGEN","TERMS OF USE",null,null,"WARUNKI KORZYSTANIA","使用条款"]
[{"$nulls":4},41,null,"Bitte klicken Sie hier und beachten die Hinweise in den Nutzungsbedingungen.","Please click here and note the information in the terms of use.",null,null,"Kliknij tutaj i zapoznaj się z informacjami zawartymi w warunkach korzystania.","点击此处查看使用条款"]
[{"$nulls":4},42,null,"Installationsvideo","Installation video",null,null,"Film instalacyjny","安装视频"]
[{"$nulls":4},43,null,"Sprache wählen","Select language",null,null,"Wybierz język","选择语言"]

{"sheet":"Quellen","index":3,"n_rows":138,"n_cols":17,"rows_kept":138,"hidden":true}
["Temperatur","E-Modul (Zug)"]
["[° C]","[N/mm2]","d"]
[-40,1884,{"$nulls":12},"Querschnittsfläche PEX-Rohr",{"$f":"IFERROR((((Vorspannung!E9/2)^2)*PI())-((((Vorspannung!E9-Vorspannung!E10-Vorspannung!E10)/2)^2)*PI()),\"-\")","v":{"v":1042.2547787549493,"d":"1,042"}},"[mm2]"]
[-39,{"$f":"B3+Quellen!$C$4","v":{"v":1870.35,"d":"1870"}},{"$f":"(Quellen!B3-Quellen!B23)/(Quellen!A3-Quellen!A23)","v":{"v":-13.65,"d":"-13.7"}},{"$nulls":11},"Gewicht PEX-Rohr pro Meter",{"$f":"IFERROR(P3*1000*1/10^6,\"-\")","v":{"v":1.0422547787549492,"d":"1.0"}},"[kg/m]"]
[-38,{"$f":"B4+Quellen!$C$4","v":{"v":1856.6999999999998,"d":"1857"}},{"$nulls":12},"Innenvolumen PEX-Rohr",{"$f":"(Vorspannung!E9-Vorspannung!E10-Vorspannung!E10)^2*PI()/4/1000","v":{"v":2.0749905317695228,"d":"2.1"}},"[ltr/m]"]
[-37,{"$f":"B5+Quellen!$C$4","v":{"v":1843.0499999999997,"d":"1843"}},{"$nulls":12},"Poisson-/Querkontraktionszahl Thermoplaste",0.35]
[-36,{"$f":"B6+Quellen!$C$4","v":{"v":1829.3999999999996,"d":"1829"}},{"$nulls":12},"Sicherheitsfaktor für Kraft",1]
[-35,{"$f":"B7+Quellen!$C$4","v":{"v":1815.7499999999995,"d":"1816"}}]
[-34,{"$f":"B8+Quellen!$C$4","v":{"v":1802.0999999999995,"d":"1802"}}]
[-33,{"$f":"B9+Quellen!$C$4","v":{"v":1788.4499999999994,"d":"1788"}}]
[-32,{"$f":"B10+Quellen!$C$4","v":{"v":1774.7999999999993,"d":"1775"}}]
[-31,{"$f":"B11+Quellen!$C$4","v":{"v":1761.1499999999992,"d":"1761"}}]
[-30,{"$f":"B12+Quellen!$C$4","v":{"v":1747.499999999999,"d":"1748"}}]
[-29,{"$f":"B13+Quellen!$C$4","v":{"v":1733.849999999999,"d":"1734"}}]
[-28,{"$f":"B14+Quellen!$C$4","v":{"v":1720.199999999999,"d":"1720"}}]
[-27,{"$f":"B15+Quellen!$C$4","v":{"v":1706.5499999999988,"d":"1707"}}]
[-26,{"$f":"B16+Quellen!$C$4","v":{"v":1692.8999999999987,"d":"1693"}}]
[-25,{"$f":"B17+Quellen!$C$4","v":{"v":1679.2499999999986,"d":"1679"}}]
[-24,{"$f":"B18+Quellen!$C$4","v":{"v":1665.5999999999985,"d":"1666"}}]
[-23,{"$f":"B19+Quellen!$C$4","v":{"v":1651.9499999999985,"d":"1652"}}]
[-22,{"$f":"B20+Quellen!$C$4","v":{"v":1638.2999999999984,"d":"1638"}}]
[-21,{"$f":"B21+Quellen!$C$4","v":{"v":1624.6499999999983,"d":"1625"}}]
[-20,1611]
[-19,{"$f":"B23+Quellen!$C$24","v":{"v":1585.45,"d":"1585"}},{"$f":"(Quellen!B23-Quellen!B43)/(Quellen!A23-Quellen!A43)","v":{"v":-25.55,"d":"-25.6"}}]
[-18,{"$f":"B24+Quellen!$C$24","v":{"v":1559.9,"d":"1560"}}]
[-17,{"$f":"B25+Quellen!$C$24","v":{"v":1534.3500000000001,"d":"1534"}}]
[-16,{"$f":"B26+Quellen!$C$24","v":{"v":1508.8000000000002,"d":"1509"}}]
[-15,{"$f":"B27+Quellen!$C$24","v":{"v":1483.2500000000002,"d":"1483"}}]
[-14,{"$f":"B28+Quellen!$C$24","v":{"v":1457.7000000000003,"d":"1458"}}]
[-13,{"$f":"B29+Quellen!$C$24","v":{"v":1432.1500000000003,"d":"1432"}}]
[-12,{"$f":"B30+Quellen!$C$24","v":{"v":1406.6000000000004,"d":"1407"}}]
[-11,{"$f":"B31+Quellen!$C$24","v":{"v":1381.0500000000004,"d":"1381"}}]
[-10,{"$f":"B32+Quellen!$C$24","v":{"v":1355.5000000000005,"d":"1356"}}]
[-9,{"$f":"B33+Quellen!$C$24","v":{"v":1329.9500000000005,"d":"1330"}}]
[-8,{"$f":"B34+Quellen!$C$24","v":{"v":1304.4000000000005,"d":"1304"}}]
[-7,{"$f":"B35+Quellen!$C$24","v":{"v":1278.8500000000006,"d":"1279"}}]
[-6,{"$f":"B36+Quellen!$C$24","v":{"v":1253.3000000000006,"d":"1253"}}]
[-5,{"$f":"B37+Quellen!$C$24","v":{"v":1227.7500000000007,"d":"1228"}}]
[-4,{"$f":"B38+Quellen!$C$24","v":{"v":1202.2000000000007,"d":"1202"}}]
[-3,{"$f":"B39+Quellen!$C$24","v":{"v":1176.6500000000008,"d":"1177"}}]
[-2,{"$f":"B40+Quellen!$C$24","v":{"v":1151.1000000000008,"d":"1151"}}]
[-1,{"$f":"B41+Quellen!$C$24","v":{"v":1125.5500000000009,"d":"1126"}}]
[0,1100]
[1,{"$f":"B43+Quellen!$C$44","v":{"v":1078.2173913043478,"d":"1078"}},{"$f":"(Quellen!B43-Quellen!B66)/(Quellen!A43-Quellen!A66)","v":{"v":-21.782608695652176,"d":"-21.8"}}]
[2,{"$f":"B44+Quellen!$C$44","v":{"v":1056.4347826086955,"d":"1056"}}]
[3,{"$f":"B45+Quellen!$C$44","v":{"v":1034.6521739130433,"d":"1035"}}]
[4,{"$f":"B46+Quellen!$C$44","v":{"v":1012.8695652173911,"d":"1013"}}]
[5,{"$f":"B47+Quellen!$C$44","v":{"v":991.086956521739,"d":"991"}}]
[6,{"$f":"B48+Quellen!$C$44","v":{"v":969.3043478260869,"d":"969"}}]
[7,{"$f":"B49+Quellen!$C$44","v":{"v":947.5217391304348,"d":"948"}}]
[8,{"$f":"B50+Quellen!$C$44","v":{"v":925.7391304347826,"d":"926"}}]
[9,{"$f":"B51+Quellen!$C$44","v":{"v":903.9565217391305,"d":"904"}}]
[10,{"$f":"B52+Quellen!$C$44","v":{"v":882.1739130434784,"d":"882"}}]
[11,{"$f":"B53+Quellen!$C$44","v":{"v":860.3913043478262,"d":"860"}}]
[12,{"$f":"B54+Quellen!$C$44","v":{"v":838.6086956521741,"d":"839"}}]
[13,{"$f":"B55+Quellen!$C$44","v":{"v":816.826086956522,"d":"817"}}]
[14,{"$f":"B56+Quellen!$C$44","v":{"v":795.0434782608698,"d":"795"}}]
[15,{"$f":"B57+Quellen!$C$44","v":{"v":773.2608695652177,"d":"773"}}]
[16,{"$f":"B58+Quellen!$C$44","v":{"v":751.4782608695656,"d":"751"}}]
[17,{"$f":"B59+Quellen!$C$44","v":{"v":729.6956521739135,"d":"730"}}]
[18,{"$f":"B60+Quellen!$C$44","v":{"v":707.9130434782613,"d":"708"}}]
[19,{"$f":"B61+Quellen!$C$44","v":{"v":686.1304347826092,"d":"686"}}]
[20,{"$f":"B62+Quellen!$C$44","v":{"v":664.3478260869571,"d":"664"}}]
[21,{"$f":"B63+Quellen!$C$44","v":{"v":642.5652173913049,"d":"643"}}]
[22,{"$f":"B64+Quellen!$C$44","v":{"v":620.7826086956528,"d":"621"}}]
[23,599]
[24,{"$f":"B66+Quellen!$C$67","v":{"v":581.5882352941177,"d":"582"}},{"$f":"(Quellen!B66-Quellen!B83)/(Quellen!A66-Quellen!A83)","v":{"v":-17.41176470588235,"d":"-17.4"}}]
[25,{"$f":"B67+Quellen!$C$67","v":{"v":564.1764705882354,"d":"564"}}]
[26,{"$f":"B68+Quellen!$C$67","v":{"v":546.764705882353,"d":"547"}}]
[27,{"$f":"B69+Quellen!$C$67","v":{"v":529.3529411764707,"d":"529"}}]
[28,{"$f":"B70+Quellen!$C$67","v":{"v":511.94117647058835,"d":"512"}}]
[29,{"$f":"B71+Quellen!$C$67","v":{"v":494.52941176470597,"d":"495"}}]
[30,{"$f":"B72+Quellen!$C$67","v":{"v":477.1176470588236,"d":"477"}}]
[31,{"$f":"B73+Quellen!$C$67","v":{"v":459.7058823529412,"d":"460"}}]
[32,{"$f":"B74+Quellen!$C$67","v":{"v":442.29411764705884,"d":"442"}}]
[33,{"$f":"B75+Quellen!$C$67","v":{"v":424.88235294117646,"d":"425"}}]
[34,{"$f":"B76+Quellen!$C$67","v":{"v":407.4705882352941,"d":"407"}}]
[35,{"$f":"B77+Quellen!$C$67","v":{"v":390.0588235294117,"d":"390"}}]
[36,{"$f":"B78+Quellen!$C$67","v":{"v":372.64705882352933,"d":"373"}}]
[37,{"$f":"B79+Quellen!$C$67","v":{"v":355.23529411764696,"d":"355"}}]
[38,{"$f":"B80+Quellen!$C$67","v":{"v":337.8235294117646,"d":"338"}}]
[39,{"$f":"B81+Quellen!$C$67","v":{"v":320.4117647058822,"d":"320"}}]
[40,303]
[41,{"$f":"B83+Quellen!$C$84","v":{"v":296.75,"d":"297"}},{"$f":"(Quellen!B83-Quellen!B103)/(Quellen!A83-Quellen!A103)","v":{"v":-6.25,"d":"-6.3"}}]
[42,{"$f":"B84+Quellen!$C$84","v":{"v":290.5,"d":"291"}}]
[43,{"$f":"B85+Quellen!$C$84","v":{"v":284.25,"d":"284"}}]
[44,{"$f":"B86+Quellen!$C$84","v":278}]
[45,{"$f":"B87+Quellen!$C$84","v":{"v":271.75,"d":"272"}}]
[46,{"$f":"B88+Quellen!$C$84","v":{"v":265.5,"d":"266"}}]
[47,{"$f":"B89+Quellen!$C$84","v":{"v":259.25,"d":"259"}}]
[48,{"$f":"B90+Quellen!$C$84","v":253}]
[49,{"$f":"B91+Quellen!$C$84","v":{"v":246.75,"d":"247"}}]
[50,{"$f":"B92+Quellen!$C$84","v":{"v":240.5,"d":"241"}}]
[51,{"$f":"B93+Quellen!$C$84","v":{"v":234.25,"d":"234"}}]
[52,{"$f":"B94+Quellen!$C$84","v":228}]
[53,{"$f":"B95+Quellen!$C$84","v":{"v":221.75,"d":"222"}}]
[54,{"$f":"B96+Quellen!$C$84","v":{"v":215.5,"d":"216"}}]
[55,{"$f":"B97+Quellen!$C$84","v":{"v":209.25,"d":"209"}}]
[56,{"$f":"B98+Quellen!$C$84","v":203}]
[57,{"$f":"B99+Quellen!$C$84","v":{"v":196.75,"d":"197"}}]
[58,{"$f":"B100+Quellen!$C$84","v":{"v":190.5,"d":"191"}}]
[59,{"$f":"B101+Quellen!$C$84","v":{"v":184.25,"d":"184"}}]
[60,178]
[61,{"$f":"B103+Quellen!$C$104","v":175.15},{"$f":"(Quellen!B103-Quellen!B123)/(Quellen!A103-Quellen!A123)","v":{"v":-2.85,"d":"-2.9"}}]
[62,{"$f":"B104+Quellen!$C$104","v":172.3}]
[63,{"$f":"B105+Quellen!$C$104","v":169.45000000000002}]
[64,{"$f":"B106+Quellen!$C$104","v":166.60000000000002}]
[65,{"$f":"B107+Quellen!$C$104","v":163.75000000000003}]
[66,{"$f":"B108+Quellen!$C$104","v":160.90000000000003}]
[67,{"$f":"B109+Quellen!$C$104","v":158.05000000000004}]
[68,{"$f":"B110+Quellen!$C$104","v":155.20000000000005}]
[69,{"$f":"B111+Quellen!$C$104","v":152.35000000000005}]
[70,{"$f":"B112+Quellen!$C$104","v":149.50000000000006}]
[71,{"$f":"B113+Quellen!$C$104","v":146.65000000000006}]
[72,{"$f":"B114+Quellen!$C$104","v":143.80000000000007}]
[73,{"$f":"B115+Quellen!$C$104","v":140.95000000000007}]
[74,{"$f":"B116+Quellen!$C$104","v":138.10000000000008}]
[75,{"$f":"B117+Quellen!$C$104","v":135.25000000000009}]
[76,{"$f":"B118+Quellen!$C$104","v":132.4000000000001}]
[77,{"$f":"B119+Quellen!$C$104","v":129.5500000000001}]
[78,{"$f":"B120+Quellen!$C$104","v":126.7000000000001}]
[79,{"$f":"B121+Quellen!$C$104","v":123.85000000000011}]
[80,121]
[81,{"$f":"B123+Quellen!$C$124","v":120.2},{"$f":"(Quellen!B123-Quellen!B133)/(Quellen!A123-Quellen!A133)","v":-0.8}]
[82,{"$f":"B124+Quellen!$C$124","v":119.4}]
[83,{"$f":"B125+Quellen!$C$124","v":118.60000000000001}]
[84,{"$f":"B126+Quellen!$C$124","v":117.80000000000001}]
[85,{"$f":"B127+Quellen!$C$124","v":117.00000000000001}]
[86,{"$f":"B128+Quellen!$C$124","v":116.20000000000002}]
[87,{"$f":"B129+Quellen!$C$124","v":115.40000000000002}]
[88,{"$f":"B130+Quellen!$C$124","v":114.60000000000002}]
[89,{"$f":"B131+Quellen!$C$124","v":113.80000000000003}]
[90,113]
[91,{"$f":"B133+Quellen!$C$134","v":112.6},{"$f":"(Quellen!B133-Quellen!B138)/(Quellen!A133-Quellen!A138)","v":-0.4}]
[92,{"$f":"B134+Quellen!$C$134","v":112.19999999999999}]
[93,{"$f":"B135+Quellen!$C$134","v":111.79999999999998}]
[94,{"$f":"B136+Quellen!$C$134","v":111.39999999999998}]
[95,111]